fUSD/lending_fUSD_20260203
["ID","MTS","AMOUNT","RATE_DAILY","PERIOD"]
[404402034,1770107963747,535.59090558,7.929e-05,2]
[404402035,1770107963788,535.59090558,7.929e-05,2]
[404402036,1770107963829,535.59090558,7.929e-05,2]
[404402037,1770107963904,535.59090558,7.929e-05,2]
[404402038,1770107963954,535.59090558,7.929e-05,2]
[404402039,1770107963993,535.59090558,7.929e-05,2]
[404402040,1770107964036,535.59090558,7.929e-05,2]
[404402041,1770107964078,535.59090558,7.929e-05,2]
[404402042,1770107964138,535.59090558,7.929e-05,2]
[404402043,1770107964180,535.59090558,7.929e-05,2]
[404402044,1770107964222,535.59090558,7.929e-05,2]
[404402045,1770107964274,535.59090558,7.929e-05,2]
[404402046,1770107964318,535.59090558,7.929e-05,2]
[404402047,1770107964364,535.59090558,7.929e-05,2]
[404402048,1770107964410,484.94386606,7.929e-05,2]
[404402049,1770107964437,50.64703952,7.929e-05,2]
[404402050,1770107964480,535.59090558,7.929e-05,2]
[404402051,1770107964521,535.59090558,7.929e-05,2]
[404402052,1770107964563,535.59090558,7.929e-05,2]
[404402053,1770107964618,535.59090558,7.929e-05,2]
[404402054,1770107964663,535.59090558,7.929e-05,2]
[404402055,1770107964708,535.59090558,7.929e-05,2]
[404402056,1770107964751,535.59090558,7.929e-05,2]
[404402057,1770107964803,535.59090558,7.929e-05,2]
[404402058,1770107964857,535.59090558,7.929e-05,2]
[404402059,1770107964899,535.59090558,7.929e-05,2]
[404402060,1770107964945,535.59090558,7.929e-05,2]
[404402061,1770107964989,535.59090558,7.929e-05,2]
[404402062,1770107965038,535.59090558,7.929e-05,2]
[404402063,1770107965083,535.59090558,7.929e-05,2]
[404402064,1770107965126,535.59090558,7.929e-05,2]
[404402065,1770107965180,535.59090558,7.929e-05,2]
[404402066,1770107965223,535.59090558,7.929e-05,2]
[404402067,1770107965266,535.59090558,7.929e-05,2]
[404402068,1770107965309,308.72666004,7.929e-05,2]
[404402069,1770107965338,226.86424554,7.929e-05,2]
[404402070,1770107965383,535.59090558,7.929e-05,2]
[404402071,1770107965425,535.59090558,7.929e-05,2]
[404402072,1770107965481,535.59090558,7.929e-05,2]
[404402073,1770107965523,535.59090558,7.929e-05,2]
[404402074,1770107975922,203.08508449,7.929e-05,2]
[404402075,1770107975967,562.03983919,7.929e-05,2]
[404402076,1770107976267,562.03983919,7.929e-05,2]
[404402077,1770107986345,308.4703,7.83e-05,2]
[404402078,1770108001552,300.0,7.929e-05,2]
[404402079,1770108001616,1200.0,7.929e-05,2]
[404402081,1770108005537,217.0,7.93e-05,2]
[404402086,1770108014928,405.6376611,7.929e-05,2]
[404402091,1770108044181,3872.50940817,7.83e-05,2]
[404402092,1770108044205,2854.14339183,7.83e-05,2]
[404402105,1770108092452,5078.505,7.772e-05,2]
[404402106,1770108092563,432.679,7.772e-05,2]
[404402107,1770108099343,1634.68260817,7.83e-05,2]
[404402108,1770108099370,10000.01,7.83e-05,2]
[404402109,1770108099398,10000.01,7.83e-05,2]
[404402110,1770108099657,10000.01,7.83e-05,2]
[404402111,1770108099684,10000.01,7.83e-05,2]
[404402112,1770108099708,10000.01,7.83e-05,2]
[404402113,1770108099734,10000.01,7.83e-05,2]
[404402114,1770108099758,5000.01,7.83e-05,2]
[404402115,1770108099781,5000.01,7.83e-05,2]
[404402116,1770108099804,5000.01,7.83e-05,2]
[404402117,1770108099828,5000.01,7.83e-05,2]
[404402118,1770108099852,5000.01,7.83e-05,2]
[404402119,1770108099877,5000.01,7.83e-05,2]
[404402120,1770108099903,5000.01,7.83e-05,2]
[404402121,1770108099929,10000.01,7.83e-05,2]
[404402122,1770108099954,5000.01,7.83e-05,2]
[404402123,1770108099980,5000.01,7.83e-05,2]
[404402124,1770108100007,10000.01,7.83e-05,2]
[404402125,1770108100033,10000.01,7.83e-05,2]
[404402126,1770108100316,-302.0,7.83e-05,2]
[404402127,1770108103058,-200.0,7.83e-05,2]
[404402128,1770108104591,-728.97051473,7.83e-05,2]
[404402129,1770108110860,-309.42108336,7.83e-05,2]
[404402130,1770108114134,-300.0,7.83e-05,2]
[404402131,1770108118613,-300.0,7.83e-05,2]
[404402132,1770108119860,-1797.15415386,7.83e-05,2]
[404402133,1770108121971,150.0,7.829e-05,2]
[404402134,1770108122495,300.0,7.829e-05,2]
[404402135,1770108123292,-2685.85822154,7.83e-05,2]
[404402136,1770108130618,151.0,7.827e-05,2]
[404402137,1770108192189,270.79492311,7.829e-05,2]
[404402138,1770108192239,290.45830852,7.829e-05,2]
[404402139,1770108194140,500.0,7.829e-05,2]
[404402140,1770108194213,500.0,7.829e-05,2]
[404402141,1770108194270,500.0,7.829e-05,2]
[404402142,1770108194309,500.0,7.829e-05,2]
[404402143,1770108194373,500.0,7.829e-05,2]
[404402144,1770108194427,500.0,7.829e-05,2]
[404402145,1770108194475,500.0,7.829e-05,2]
[404402146,1770108194534,500.0,7.829e-05,2]
[404402147,1770108194591,500.0,7.829e-05,2]
[404402148,1770108194638,500.0,7.829e-05,2]
[404402149,1770108194692,500.0,7.829e-05,2]
[404402150,1770108194758,250.0,7.829e-05,2]
[404402151,1770108194799,500.0,7.829e-05,2]
[404402152,1770108194860,500.0,7.829e-05,2]
[404402153,1770108194918,500.0,7.829e-05,2]
[404402154,1770108194992,500.0,7.829e-05,2]
[404402155,1770108195058,500.0,7.829e-05,2]
[404402156,1770108195123,500.0,7.829e-05,2]
[404402157,1770108195194,87.75676837,7.829e-05,2]
[404402158,1770108195217,475.78824734,7.829e-05,2]
[404402159,1770108248133,648.85646346,7.829e-05,2]
[404402160,1770108248412,500.0,7.829e-05,2]
[404402161,1770108249040,151.0,7.827e-05,2]
[404402162,1770108284477,500.0,7.829e-05,2]
[404402163,1770108301799,1200.0,7.829e-05,2]
[404402164,1770108302047,150.0,7.829e-05,2]
[404402167,1770108317453,500.0,7.829e-05,2]
[404402168,1770108348952,500.0,7.829e-05,2]
[404402171,1770108368811,151.0,7.827e-05,2]
[404402173,1770108380886,223.3652892,7.829e-05,2]
[404402174,1770108380912,276.6347108,7.829e-05,2]
[404402175,1770108412307,500.0,7.829e-05,2]
[404402176,1770108416909,4223.3752892,7.73e-05,2]
[404402177,1770108416938,10000.01,7.73e-05,2]
[404402178,1770108416967,10000.01,7.73e-05,2]
[404402179,1770108416996,10000.01,7.73e-05,2]
[404402180,1770108417026,10000.01,7.73e-05,2]
[404402181,1770108417053,10000.01,7.73e-05,2]
[404402182,1770108417082,10000.01,7.73e-05,2]
[404402183,1770108417109,10000.01,7.73e-05,2]
[404402184,1770108417137,10000.01,7.73e-05,2]
[404402185,1770108417168,10000.01,7.73e-05,2]
[404402186,1770108417195,5000.01,7.73e-05,2]
[404402187,1770108417222,5000.01,7.73e-05,2]
[404402188,1770108417248,5000.01,7.73e-05,2]
[404402189,1770108417275,5000.01,7.73e-05,2]
[404402190,1770108417300,5000.01,7.73e-05,2]
[404402191,1770108417326,5000.01,7.73e-05,2]
[404402192,1770108417350,5000.01,7.73e-05,2]
[404402193,1770108417376,5000.01,7.73e-05,2]
[404402194,1770108417918,-300.0,7.73e-05,2]
[404402195,1770108419915,-200.0,7.73e-05,2]
[404402196,1770108422019,-261.40109204,7.73e-05,2]
[404402197,1770108425063,-450.19080258,7.73e-05,2]
[404402198,1770108426314,300.0,7.729e-05,2]
[404402199,1770108429871,-389.59890796,7.73e-05,2]
[404402200,1770108431663,-500.0,7.73e-05,2]
[404402201,1770108433924,-177.71399708,7.73e-05,2]
[404402202,1770108437220,-299.49061193,7.73e-05,2]
[404402203,1770108438136,1227.41463025,7.729e-05,2]
[404402204,1770108439817,-250.0,7.73e-05,2]
[404402205,1770108441990,-560.22087833,7.73e-05,2]
[404402206,1770108445521,1500.0,7.7e-05,2]
[404402207,1770108448627,-822.01390266,7.73e-05,2]
[404402208,1770108453562,-439.10829603,7.73e-05,2]
[404402209,1770108455731,-469.22422718,7.73e-05,2]
[404402210,1770108457466,-1376.4768139,7.73e-05,2]
[404402211,1770108459112,-302.0,7.73e-05,2]
[404402212,1770108482415,150.0,7.729e-05,2]
[404402213,1770108488912,151.0,7.727e-05,2]
[404402214,1770108601296,300.0,7.729e-05,2]
[404402215,1770108601861,1200.0,7.729e-05,2]
[404402217,1770108608338,327.9935611,7.729e-05,2]
[404402218,1770108608475,250.73355227,7.729e-05,2]
[404402219,1770108609285,151.0,7.727e-05,2]
[404402220,1770108610746,250.0,7.729e-05,2]
[404402221,1770108610788,500.0,7.729e-05,2]
[404402222,1770108610835,500.0,7.729e-05,2]
[404402223,1770108610903,500.0,7.729e-05,2]
[404402224,1770108610969,500.0,7.729e-05,2]
[404402225,1770108611042,500.0,7.729e-05,2]
[404402226,1770108611098,500.0,7.729e-05,2]
[404402227,1770108611154,500.0,7.729e-05,2]
[404402228,1770108611210,500.0,7.729e-05,2]
[404402229,1770108611262,191.86825638,7.729e-05,2]
[404402230,1770108611293,308.13174362,7.729e-05,2]
[404402231,1770108611343,500.0,7.729e-05,2]
[404402232,1770108611396,500.0,7.729e-05,2]
[404402233,1770108611446,500.0,7.729e-05,2]
[404402234,1770108611498,500.0,7.729e-05,2]
[404402235,1770108611556,500.0,7.729e-05,2]
[404402236,1770108611603,500.0,7.729e-05,2]
[404402237,1770108611694,500.0,7.729e-05,2]
[404402238,1770108611771,500.0,7.729e-05,2]
[404402239,1770108611834,207.26369948,7.729e-05,2]
[404402243,1770108632191,-885.66,7.73e-05,2]
[404402244,1770108632224,-1600.0,7.73e-05,2]
[404402245,1770108632236,-7124.18576796,7.73e-05,2]
[404402246,1770108632249,-619.35433313,7.73e-05,2]
[404402247,1770108632261,-3124.2367233,7.73e-05,2]
[404402248,1770108632289,-1293.07089697,7.73e-05,2]
[404402249,1770108632300,-286.98,7.73e-05,2]
[404402250,1770108632313,-994.88176241,7.73e-05,2]
[404402251,1770108632324,-2830.76908413,7.73e-05,2]
[404402252,1770108632339,-3516.43905877,7.73e-05,2]
[404402253,1770108632351,-832.22856812,7.73e-05,2]
[404402254,1770108632363,-10974.72,7.73e-05,2]
[404402255,1770108632374,-184748.19661354,7.73e-05,2]
[404402256,1770108632387,-800.0,7.73e-05,2]
[404402257,1770108633324,500.0,7.729e-05,2]
[404402258,1770108633379,500.0,7.729e-05,2]
[404402259,1770108638285,-3928.40235194,7.73e-05,2]
[404402260,1770108638298,-8229.21082737,7.73e-05,2]
[404402261,1770108638310,-412.68307781,7.73e-05,2]
[404402262,1770108638338,-348.01441186,7.73e-05,2]
[404402263,1770108638350,-39709.3728348,7.73e-05,2]
[404402264,1770108638362,-8350.99785105,7.73e-05,2]
[404402265,1770108638393,-802.0,7.73e-05,2]
[404402266,1770108638405,-11935.11915648,7.73e-05,2]
[404402267,1770108638417,-6103.65377534,7.73e-05,2]
[404402268,1770108638428,-563.94852852,7.73e-05,2]
[404402269,1770108638441,-875.29292091,7.73e-05,2]
[404402270,1770108638453,-10869.68645824,7.73e-05,2]
[404402306,1770108638882,-252.9257169,7.73e-05,2]
[404402307,1770108638894,-3046966.98446156,7.73e-05,2]
[404402308,1770108638904,-3414.04069718,7.733e-05,2]
[404402309,1770108638914,-9009.70741527,7.733e-05,2]
[404402332,1770108639181,-15894.19183527,7.733e-05,2]
[404402333,1770108639205,-250.0,7.765e-05,2]
[404402334,1770108639217,-3000.0,7.8e-05,2]
[404402335,1770108639229,-204.69,7.815e-05,2]
[404402336,1770108639239,-20293.34,7.819e-05,2]
[404402337,1770108639249,-6726.6528,7.83e-05,2]
[404402338,1770108639259,-237.3167,7.83e-05,2]
[404402339,1770108639268,-254.47974801,7.855e-05,2]
[404402340,1770108639277,-4500.0,7.9e-05,2]
[404402341,1770108639287,-1000.0,7.929e-05,2]
[404402342,1770108639300,-7200.02,7.945e-05,2]
[404402343,1770108639309,-2709.995541,7.945e-05,2]
[404402344,1770108639320,-2290.014459,7.945e-05,2]
[404402345,1770108639332,-7800.01,7.945e-05,2]
[404402346,1770108639342,-6100.0,8e-05,2]
[404402347,1770108639352,-500.0,8.03e-05,2]
[404402348,1770108639364,-4374.683372,8.178e-05,2]
[404402349,1770108639374,-500.0,8.219e-05,2]
[404402350,1770108639384,-500.0,8.219e-05,2]
[404402351,1770108639396,-217.67806723,8.219e-05,2]
[404402352,1770108639405,-826.13775046,8.322e-05,2]
[404402353,1770108639415,-214.82760264,8.322e-05,2]
[404402354,1770108639425,-9450.0,8.372e-05,2]
[404402355,1770108639434,-417.0,8.439e-05,2]
[404402356,1770108639444,-9999.99,8.439e-05,2]
[404402357,1770108639460,-299.99,8.439e-05,2]
[404402358,1770108639477,-9999.99,8.439e-05,2]
[404402359,1770108639486,-150.99,8.439e-05,2]
[404402360,1770108639496,-150.99,8.439e-05,2]
[404402361,1770108639508,-999.99,8.439e-05,2]
[404402362,1770108639518,-9999.99,8.439e-05,2]
[404402363,1770108639529,-9999.99,8.439e-05,2]
[404402364,1770108639540,-9999.99,8.439e-05,2]
[404402365,1770108639551,-4999.99,8.439e-05,2]
[404402366,1770108639560,-343.78,8.439e-05,2]
[404402367,1770108639570,-255.0,8.502e-05,2]
[404402368,1770108639580,-1680.0,8.502e-05,2]
[404402369,1770108639590,-193.0,8.503e-05,2]
[404402370,1770108639600,-300.0,8.503e-05,2]
[404402371,1770108639609,-300.0,8.503e-05,2]
[404402372,1770108639619,-305.0775542,8.503e-05,2]
[404402373,1770108639628,-250.0,8.503e-05,2]
[404402374,1770108639638,-300.0,8.503e-05,2]
[404402375,1770108639647,-355.87501399,8.503e-05,2]
[404402376,1770108639657,-500.0,8.503e-05,2]
[404402377,1770108639666,-500.0,8.503e-05,2]
[404402378,1770108639676,-500.0,8.503e-05,2]
[404402379,1770108639685,-310.59740914,8.503e-05,2]
[404402380,1770108639695,-500.0,8.613e-05,2]
[404402381,1770108639704,-193.0,8.613e-05,2]
[404402382,1770108639715,-4003.10239793,8.722e-05,2]
[404402383,1770108639726,-1511.57,8.724e-05,2]
[404402384,1770108639736,-215.0,8.787e-05,2]
[404402385,1770108639745,-1331.96,8.9e-05,2]
[404402386,1770108639756,-61940.03531577,8.995e-05,2]
[404402387,1770108639766,-1511.57,8.998e-05,2]
[404402388,1770108639776,-1600.0,9.025e-05,2]
[404402389,1770108639785,-166.51015303,9.133e-05,2]
[404402390,1770108639796,-500.0,9.133e-05,2]
[404402391,1770108639808,-562.28195765,9.133e-05,2]
[404402392,1770108639818,-500.0,9.133e-05,2]
[404402393,1770108639829,-500.0,9.133e-05,2]
[404402394,1770108639843,-500.0,9.133e-05,2]
[404402395,1770108639853,-500.0,9.133e-05,2]
[404402396,1770108639863,-500.0,9.133e-05,2]
[404402397,1770108639872,-500.0,9.133e-05,2]
[404402398,1770108639882,-500.0,9.133e-05,2]
[404402399,1770108639892,-1511.57,9.272e-05,2]
[404402400,1770108639910,-166.66,9.313e-05,2]
[404402401,1770108639920,-433.0,9.353e-05,2]
[404402402,1770108639931,-2351.0,9.353e-05,2]
[404402403,1770108639940,-151.0,9.406e-05,2]
[404402404,1770108639950,-60947.01,9.409e-05,2]
[404402405,1770108639960,-1511.57,9.545e-05,2]
[404402406,1770108639969,-166.66,9.62e-05,2]
[404402407,1770108639979,-500.0,9.681e-05,2]
[404402408,1770108639989,-500.0,9.681e-05,2]
[404402409,1770108639998,-500.0,9.681e-05,2]
[404402410,1770108640010,-500.0,9.702e-05,2]
[404402411,1770108640020,-1511.57,9.819e-05,2]
[404402412,1770108640030,-23776.76041639,9.833e-05,2]
[404402413,1770108640039,-166.66,9.928e-05,2]
[404402414,1770108640049,-1064.27,9.99e-05,2]
[404402415,1770108640059,-151.0,0.0001,2]
[404402416,1770108640069,-151.0,0.0001,2]
[404402417,1770108640078,-151.0,0.0001,2]
[404402418,1770108640088,-151.0,0.0001,2]
[404402419,1770108640098,-500.0,0.0001,2]
[404402420,1770108640108,-500.0,0.0001,2]
[404402421,1770108640118,-151.0,0.0001,2]
[404402422,1770108640127,-500.0,0.0001,2]
[404402423,1770108640136,-151.0,0.0001,2]
[404402424,1770108640145,-500.0,0.0001,2]
[404402425,1770108640155,-500.0,0.0001,2]
[404402426,1770108640165,-151.0,0.0001,2]
[404402427,1770108640175,-500.0,0.0001,2]
[404402428,1770108640185,-151.0,0.0001,2]
[404402429,1770108640194,-500.0,0.0001,2]
[404402430,1770108640204,-151.0,0.0001,2]
[404402431,1770108640219,-500.0,0.0001,2]
[404402432,1770108640229,-151.0,0.0001,2]
[404402433,1770108640239,-500.0,0.0001,2]
[404402434,1770108640250,-151.0,0.0001,2]
[404402435,1770108640261,-500.0,0.0001,2]
[404402436,1770108640272,-151.0,0.0001,2]
[404402437,1770108640283,-500.0,0.0001,2]
[404402438,1770108640293,-151.0,0.0001,2]
[404402439,1770108640302,-151.0,0.0001,2]
[404402440,1770108640312,-151.0,0.0001,2]
[404402441,1770108640321,-151.0,0.0001,2]
[404402442,1770108640333,-151.0,0.0001,2]
[404402443,1770108640343,-151.0,0.0001,2]
[404402444,1770108640354,-151.0,0.0001,2]
[404402445,1770108640363,-151.0,0.0001,2]
[404402446,1770108640373,-500.0,0.0001,2]
[404402447,1770108640385,-500.0,0.0001,2]
[404402448,1770108640394,-500.0,0.0001,2]
[404402449,1770108640407,-500.0,0.0001,2]
[404402450,1770108640416,-151.0,0.0001,2]
[404402451,1770108640426,-500.0,0.0001,2]
[404402452,1770108640435,-151.0,0.0001,2]
[404402453,1770108640444,-500.0,0.0001,2]
[404402454,1770108640455,-151.0,0.0001,2]
[404402455,1770108640466,-500.0,0.0001,2]
[404402456,1770108640476,-151.0,0.0001,2]
[404402457,1770108640485,-151.0,0.0001,2]
[404402458,1770108640495,-500.0,0.0001,2]
[404402459,1770108640504,-500.0,0.0001,2]
[404402460,1770108640513,-151.0,0.0001,2]
[404402461,1770108640523,-500.0,0.0001,2]
[404402462,1770108640532,-151.0,0.0001,2]
[404402463,1770108640542,-500.0,0.0001,2]
[404402464,1770108640551,-151.0,0.0001,2]
[404402465,1770108640560,-151.0,0.0001,2]
[404402466,1770108640569,-151.0,0.0001,2]
[404402467,1770108640579,-151.0,0.0001,2]
[404402468,1770108640588,-183.18333193,0.0001,2]
[404402469,1770108640599,-169.96770097,0.0001,2]
[404402470,1770108640609,-150.01401758,0.0001,2]
[404402471,1770108640618,-1511.57,0.00010093,2]
[404402472,1770108640627,-1600.0,0.00010154,2]
[404402473,1770108640636,-250.0,0.00010214,2]
[404402474,1770108640646,-166.66,0.00010235,2]
[404402475,1770108640656,-736.0,0.00010288,2]
[404402476,1770108640665,-3292.0,0.00010288,2]
[404402477,1770108640674,-1511.57,0.00010367,2]
[404402478,1770108640684,-166.66,0.00010542,2]
[404402479,1770108640693,-500.98,0.00010629,2]
[404402480,1770108640705,-1511.57,0.00010641,2]
[404402481,1770108640717,-200.0,0.00010687,2]
[404402482,1770108640727,-166.66,0.0001085,2]
[404402483,1770108640736,-7600.0,0.000109,3]
[404402484,1770108640746,-6042.35870635,0.000109,2]
[404402485,1770108640756,-6042.35870632,0.000109,2]
[404402486,1770108640767,-6042.35870632,0.000109,2]
[404402487,1770108640778,-1511.57,0.00010915,2]
[404402488,1770108640792,-166.66,0.00010959,2]
[404402489,1770108640803,-166.66,0.00011068,2]
[404402490,1770108640814,-6204.93042135,0.00011099,2]
[404402491,1770108640823,-6204.93042131,0.00011099,2]
[404402492,1770108640834,-6204.93042131,0.00011099,2]
[404402493,1770108640843,-6204.93042131,0.00011099,2]
[404402494,1770108640853,-67352.24758734,0.00011099,2]
[404402495,1770108640862,-67352.24758732,0.00011099,2]
[404402497,1770108640873,-67352.24758732,0.00011099,2]
[404402498,1770108640883,-238.0,0.000111,2]
[404402499,1770108640893,-361.07070519,0.00011101,2]
[404402500,1770108640903,-67352.24758732,0.0001112,2]
[404402501,1770108640920,-166.66,0.00011178,2]
[404402502,1770108640931,-150.01401758,0.00011185,2]
[404402503,1770108640942,-1511.57,0.00011189,2]
[404402504,1770108640951,-21660.36,0.00011233,2]
[404402505,1770108640961,-1600.0,0.00011282,2]
[404402506,1770108640970,-166.66,0.00011288,2]
[404402507,1770108640980,-1252.0,0.00011316,2]
[404402508,1770108640990,-4609.0,0.00011317,2]
[404402509,1770108641000,-13564.57,0.00011362,2]
[404402510,1770108641009,-166.66,0.00011397,2]
[404402511,1770108641019,-1511.57,0.00011463,2]
[404402512,1770108641029,-166.66,0.00011507,2]
[404402513,1770108641039,-155.39,0.000116,2]
[404402514,1770108641048,-178.66,0.00011638,2]
[404402515,1770108641058,-3409.46,0.00011666,2]
[404402516,1770108641067,-1511.57,0.00011737,2]
[404402517,1770108641076,-500.0,0.00011882,2]
[404402518,1770108641086,-1886.6178149,0.00012,2]
[404402519,1770108641095,-1511.57,0.00012011,2]
[404402520,1770108641105,-6042.35870632,0.00012071,2]
[404402521,1770108641114,-6204.93042131,0.00012125,2]
[404402522,1770108641123,-67352.24758732,0.0001225,2]
[404402523,1770108641132,-1511.57,0.00012285,2]
[404402524,1770108641141,-150.01401758,0.0001237,2]
[404402525,1770108641150,-1600.0,0.0001241,2]
[404402526,1770108641160,-6453.0,0.00012448,2]
[404402527,1770108641169,-245.0,0.00012452,2]
[404402528,1770108641178,-1511.57,0.00012559,2]
[404402529,1770108641188,-183.18333192,0.000128,2]
[404402530,1770108641197,-1511.57,0.00012833,2]
[404402531,1770108641206,-32170.8024,0.00012833,2]
[404402532,1770108641217,-1000.0,0.00012964,2]
[404402533,1770108641226,-178.66,0.00013092,2]
[404402534,1770108641235,-1511.57,0.00013107,2]
[404402535,1770108641244,-67352.24758732,0.0001338,2]
[404402536,1770108641254,-1511.57,0.00013381,2]
[404402537,1770108641265,-3240.0,0.00013425,2]
[404402538,1770108641276,-6042.35870632,0.00013529,2]
[404402539,1770108641286,-1600.0,0.00013538,2]
[404402540,1770108641297,-35766.0,0.00013587,2]
[404402541,1770108641307,-1511.57,0.00013655,2]
[404402542,1770108641317,-9035.0,0.00013693,2]
[404402543,1770108641327,-500.0,0.00013698,2]
[404402544,1770108641337,-501.81901913,0.00013698,2]
[404402545,1770108641347,-500.0,0.00013698,2]
[404402546,1770108641358,-500.0,0.00013698,2]
[404402547,1770108641368,-500.0,0.00013698,2]
[404402548,1770108641378,-438.97921379,0.00013698,2]
[404402549,1770108641387,-452.02134495,0.00013698,2]
[404402550,1770108641399,-199.38200897,0.00013698,2]
[404402551,1770108641411,-500.0,0.00013698,2]
[404402552,1770108641421,-500.0,0.00013698,2]
[404402553,1770108641430,-500.0,0.00013698,2]
[404402554,1770108641440,-500.0,0.00013698,2]
[404402555,1770108641450,-378.56522147,0.00013698,2]
[404402556,1770108641463,-500.0,0.00013698,2]
[404402557,1770108641475,-500.0,0.00013698,2]
[404402558,1770108641485,-500.0,0.00013698,2]
[404402559,1770108641494,-500.0,0.00013698,2]
[404402560,1770108641504,-500.0,0.00013698,2]
[404402561,1770108641513,-500.0,0.00013698,2]
[404402562,1770108641522,-500.0,0.00013698,2]
[404402563,1770108641531,-500.0,0.00013698,2]
[404402564,1770108641540,-500.0,0.00013698,2]
[404402565,1770108641551,-222.83714718,0.00013698,2]
[404402566,1770108641561,-500.0,0.00013698,2]
[404402567,1770108641570,-500.0,0.00013698,2]
[404402568,1770108641582,-500.0,0.00013698,2]
[404402569,1770108641592,-500.0,0.00013698,2]
[404402570,1770108641603,-500.0,0.00013698,2]
[404402571,1770108641614,-340.45778603,0.00013698,2]
[404402572,1770108641624,-500.0,0.00013698,2]
[404402573,1770108641635,-500.0,0.00013698,2]
[404402574,1770108641646,-500.0,0.00013698,2]
[404402575,1770108641656,-500.0,0.00013698,2]
[404402576,1770108641667,-545.58231824,0.00013698,2]
[404402577,1770108641677,-500.0,0.00013698,2]
[404402578,1770108641687,-500.0,0.00013698,2]
[404402579,1770108641697,-500.0,0.00013698,2]
[404402580,1770108641706,-500.0,0.00013698,2]
[404402581,1770108641717,-500.0,0.00013698,2]
[404402582,1770108641728,-558.31479011,0.00013698,2]
[404402583,1770108641738,-552.61203619,0.00013698,2]
[404402584,1770108641746,-500.0,0.00013698,2]
[404402585,1770108641755,-500.0,0.00013698,2]
[404402586,1770108641764,-500.0,0.00013698,2]
[404402587,1770108641774,-500.0,0.00013698,2]
[404402588,1770108641783,-500.0,0.00013698,2]
[404402589,1770108641793,-500.0,0.00013698,2]
[404402590,1770108641803,-500.0,0.00013698,2]
[404402591,1770108641812,-500.0,0.00013698,2]
[404402592,1770108641821,-371.76186134,0.00013698,2]
[404402593,1770108641831,-500.0,0.00013698,2]
[404402594,1770108641841,-509.06540724,0.00013698,2]
[404402595,1770108641851,-9681.08,0.00013699,2]
[404402596,1770108641860,-500.0,0.00013699,2]
[404402597,1770108641870,-260.20893212,0.000137,2]
[404402598,1770108641880,-500.0,0.000137,2]
[404402599,1770108641891,-500.0,0.000137,2]
[404402600,1770108641900,-500.0,0.000137,2]
[404402601,1770108641912,-500.0,0.000137,2]
[404402602,1770108641921,-500.0,0.000137,2]
[404402603,1770108641931,-500.0,0.000137,2]
[404402604,1770108641941,-151.0,0.00013747,2]
[404402605,1770108641951,-151.0,0.00013747,2]
[404402606,1770108641961,-1511.57,0.00013929,2]
[404402607,1770108641971,-500.0,0.00014082,2]
[404402608,1770108641980,-1511.57,0.00014203,2]
[404402609,1770108641991,-1000.0,0.00014248,2]
[404402610,1770108642001,-1000.0,0.00014248,2]
[404402611,1770108642010,-500.0,0.00014248,2]
[404402612,1770108642019,-1001.21553048,0.00014248,2]
[404402613,1770108642029,-1511.57,0.00014477,2]
[404402614,1770108642040,-20000.0,0.000145,2]
[404402615,1770108642050,-67352.24758732,0.0001451,2]
[404402616,1770108642060,-178.66,0.00014547,2]
[404402617,1770108642071,-150.01401758,0.0001474,2]
[404402618,1770108642081,-1511.57,0.00014751,2]
[404402619,1770108642091,-369.98194845,0.00014796,2]
[404402620,1770108642101,-495.7739334,0.00014796,2]
[404402621,1770108642111,-6042.35870632,0.00014986,2]